[Event "*** SCC Grand Prix: Titled Tuesday Blitz"]
[Site "Chess.com"]
[Date "2020.07.21"]
[Round "8"]
[White "Xeniya2005"]
[Black "natelleka"]
[Result "0-1"]
[WhiteElo "2370"]
[BlackElo "2167"]
[TimeControl "180+1"]
[EndTime "11:37:02 PDT"]
[Termination "natelleka won by checkmate"]

1. e4 {[%clk 0:03:00.9]} 1... e5 {[%clk 0:02:58.3]} 2. Nf3 {[%clk 0:02:59.7]}
2... Nf6 {[%clk 0:02:58.1]} 3. Nxe5 {[%clk 0:02:57.1]} 3... Nxe4 {[%clk
0:02:58]} 4. Bd3 {[%clk 0:02:53.1]} 4... Qe7 {[%clk 0:02:54.8]} 5. Bxe4 {[%clk
0:02:50.2]} 5... Qxe5 {[%clk 0:02:54.3]} 6. O-O {[%clk 0:02:44.4]} 6... Bd6
{[%clk 0:02:39.7]} 7. g3 {[%clk 0:02:40.2]} 7... O-O {[%clk 0:02:37.1]} 8. Re1
{[%clk 0:02:38.4]} 8... Qf6 {[%clk 0:02:26.4]} 9. d4 {[%clk 0:02:33.4]} 9... c6
{[%clk 0:02:22.3]} 10. Qg4 {[%clk 0:02:23.1]} 10... Bb4 {[%clk 0:02:14]} 11. c3
{[%clk 0:02:18.4]} 11... d5 {[%clk 0:02:05.8]} 12. Bxh7+ {[%clk 0:02:03.9]}
12... Kxh7 {[%clk 0:02:04.4]} 13. Qh5+ {[%clk 0:02:03.7]} 13... Kg8 {[%clk
0:02:01.3]} 14. cxb4 {[%clk 0:02:02.8]} 14... Qxd4 {[%clk 0:01:54.1]} 15. Nc3
{[%clk 0:01:57.9]} 15... Bg4 {[%clk 0:01:52.2]} 16. Qg5 {[%clk 0:01:52.1]} 16...
Be6 {[%clk 0:01:29.5]} 17. Bf4 {[%clk 0:01:36.6]} 17... Nd7 {[%clk 0:01:26.2]}
18. Rad1 {[%clk 0:01:28.6]} 18... Qxb4 {[%clk 0:01:24]} 19. Ne2 {[%clk
0:01:21.3]} 19... Qxb2 {[%clk 0:01:13.6]} 20. Nd4 {[%clk 0:01:19.7]} 20... Rfe8
{[%clk 0:01:10.6]} 21. Re2 {[%clk 0:00:47.3]} 21... Qa3 {[%clk 0:01:01.8]} 22.
Rde1 {[%clk 0:00:41.1]} 22... Qe7 {[%clk 0:00:48.8]} 23. Qxe7 {[%clk 0:00:20]}
23... Rxe7 {[%clk 0:00:48.5]} 24. Nf5 {[%clk 0:00:17.6]} 24... Ree8 {[%clk
0:00:44.1]} 25. Nd6 {[%clk 0:00:17.1]} 25... Rf8 {[%clk 0:00:37.4]} 26. Nxb7
{[%clk 0:00:15.6]} 26... Nb6 {[%clk 0:00:32.6]} 27. Nc5 {[%clk 0:00:14.1]} 27...
Rfe8 {[%clk 0:00:31.8]} 28. Nxe6 {[%clk 0:00:12.6]} 28... Rxe6 {[%clk
0:00:30.6]} 29. Rxe6 {[%clk 0:00:13.5]} 29... fxe6 {[%clk 0:00:30.9]} 30. Rxe6
{[%clk 0:00:14.1]} 30... Kf7 {[%clk 0:00:31.6]} 31. Rxc6 {[%clk 0:00:13.9]}
31... Rd8 {[%clk 0:00:25.4]} 32. Kf1 {[%clk 0:00:08.2]} 32... d4 {[%clk
0:00:20.9]} 33. Ke2 {[%clk 0:00:08]} 33... Nd5 {[%clk 0:00:21.2]} 34. Bd2 {[%clk
0:00:05.4]} 34... g6 {[%clk 0:00:20.4]} 35. Kd3 {[%clk 0:00:05.4]} 35... Ne7
{[%clk 0:00:18]} 36. Rc7 {[%clk 0:00:04.9]} 36... Ke6 {[%clk 0:00:18.5]} 37.
Rxa7 {[%clk 0:00:04.2]} 37... Rd6 {[%clk 0:00:18]} 38. Ra5 {[%clk 0:00:03.7]}
38... Nd5 {[%clk 0:00:17.3]} 39. f4 {[%clk 0:00:02.8]} 39... Nf6 {[%clk
0:00:14.2]} 40. h3 {[%clk 0:00:02.3]} 40... Nh5 {[%clk 0:00:14.1]} 41. Re5+
{[%clk 0:00:02.3]} 41... Kf6 {[%clk 0:00:13.6]} 42. g4 {[%clk 0:00:03.2]} 42...
Ng3 {[%clk 0:00:12.6]} 43. Rc5 {[%clk 0:00:02.9]} 43... Nh1 {[%clk 0:00:11.3]}
44. h4 {[%clk 0:00:03]} 44... Nf2+ {[%clk 0:00:10.3]} 45. Ke2 {[%clk 0:00:03.2]}
45... Nxg4 {[%clk 0:00:11.2]} 46. Kf3 {[%clk 0:00:03.3]} 46... Nh2+ {[%clk
0:00:09.6]} 47. Kg2 {[%clk 0:00:03.4]} 47... Ng4 {[%clk 0:00:09.8]} 48. Rg5
{[%clk 0:00:02.8]} 48... Nh6 {[%clk 0:00:10.7]} 49. Kf3 {[%clk 0:00:02.7]} 49...
Nf5 {[%clk 0:00:11.1]} 50. h5 {[%clk 0:00:02]} 50... gxh5 {[%clk 0:00:10.6]} 51.
Rxh5 {[%clk 0:00:02.1]} 51... Ra6 {[%clk 0:00:10.2]} 52. Rh8 {[%clk 0:00:02.1]}
52... Ra3+ {[%clk 0:00:09.7]} 53. Ke2 {[%clk 0:00:01.1]} 53... Rxa2 {[%clk
0:00:10]} 54. Rf8+ {[%clk 0:00:01.1]} 54... Ke6 {[%clk 0:00:10.4]} 55. Re8+
{[%clk 0:00:01.4]} 55... Kd5 {[%clk 0:00:10.9]} 56. Ke1 {[%clk 0:00:02.3]} 56...
Ng3 {[%clk 0:00:10.6]} 57. Re5+ {[%clk 0:00:03.2]} 57... Kc4 {[%clk 0:00:09.7]}
58. f5 {[%clk 0:00:03.6]} 58... Kd3 {[%clk 0:00:10]} 59. Bf4 {[%clk 0:00:02.7]}
59... Ne4 {[%clk 0:00:06.7]} 60. Re6 {[%clk 0:00:01.7]} 60... Ra1+ {[%clk
0:00:06.1]} 61. Bc1 {[%clk 0:00:01.1]} 61... Rxc1# {[%clk 0:00:06.6]} 0-1

[Event "*** SCC Grand Prix: Titled Tuesday Blitz"]
[Site "Chess.com"]
[Date "2020.07.21"]
[Round "8"]
[White "platy3"]
[Black "hansen"]
[Result "0-1"]
[WhiteElo "2773"]
[BlackElo "2921"]
[TimeControl "180+1"]
[EndTime "11:37:05 PDT"]
[Termination "hansen won on time"]

1. e4 {[%clk 0:03:00.9]} 1... c5 {[%clk 0:02:54.1]} 2. Nf3 {[%clk 0:03:00.9]}
2... e6 {[%clk 0:02:51.9]} 3. d4 {[%clk 0:03:00.9]} 3... cxd4 {[%clk 0:02:52]}
4. Nxd4 {[%clk 0:03:01.8]} 4... a6 {[%clk 0:02:51.3]} 5. c4 {[%clk 0:03:01.4]}
5... Nf6 {[%clk 0:02:49]} 6. Nc3 {[%clk 0:03:01.5]} 6... Bb4 {[%clk 0:02:43.7]}
7. Qd3 {[%clk 0:02:58.4]} 7... Nc6 {[%clk 0:02:32.6]} 8. Nc2 {[%clk 0:02:43]}
8... Be7 {[%clk 0:02:13.5]} 9. Be2 {[%clk 0:02:41.1]} 9... O-O {[%clk
0:02:09.5]} 10. O-O {[%clk 0:02:41.5]} 10... Qc7 {[%clk 0:01:59.1]} 11. f4
{[%clk 0:02:36.7]} 11... d6 {[%clk 0:01:54.6]} 12. Be3 {[%clk 0:02:33.9]} 12...
b6 {[%clk 0:01:48.7]} 13. Rac1 {[%clk 0:02:25.4]} 13... Bb7 {[%clk 0:01:48.5]}
14. Nd4 {[%clk 0:02:17.3]} 14... Nxd4 {[%clk 0:01:48.5]} 15. Bxd4 {[%clk
0:02:17.1]} 15... Rac8 {[%clk 0:01:36]} 16. Qg3 {[%clk 0:02:09.5]} 16... g6
{[%clk 0:01:34.6]} 17. Bd3 {[%clk 0:01:56.3]} 17... e5 {[%clk 0:00:42.9]} 18.
fxe5 {[%clk 0:01:35.2]} 18... dxe5 {[%clk 0:00:43]} 19. Be3 {[%clk 0:01:25.5]}
19... Nh5 {[%clk 0:00:31.7]} 20. Qf2 {[%clk 0:01:08.9]} 20... Nf4 {[%clk
0:00:31.7]} 21. Rfd1 {[%clk 0:00:27.3]} 21... Nxd3 {[%clk 0:00:23.9]} 22. Rxd3
{[%clk 0:00:28.2]} 22... Qxc4 {[%clk 0:00:21.3]} 23. Rd7 {[%clk 0:00:27.2]}
23... Rc7 {[%clk 0:00:07.3]} 24. b3 {[%clk 0:00:12.7]} 24... Qc6 {[%clk
0:00:06]} 25. Rxe7 {[%clk 0:00:09.6]} 25... Rxe7 {[%clk 0:00:05.9]} 26. Nd5
{[%clk 0:00:10.2]} 26... Qd6 {[%clk 0:00:05.7]} 27. Nxe7+ {[%clk 0:00:04.4]}
27... Qxe7 {[%clk 0:00:06.5]} 28. Bh6 {[%clk 0:00:04.6]} 28... Rd8 {[%clk
0:00:05.8]} 29. h3 {[%clk 0:00:04]} 29... Bxe4 {[%clk 0:00:05.8]} 30. Rc7 {[%clk
0:00:04]} 30... Qe6 {[%clk 0:00:04.5]} 31. Qh4 {[%clk 0:00:03.6]} 31... f6
{[%clk 0:00:04.3]} 32. Rg7+ {[%clk 0:00:02.5]} 32... Kh8 {[%clk 0:00:04]} 33.
Rc7 {[%clk 0:00:03]} 33... g5 {[%clk 0:00:03]} 34. Bg7+ {[%clk 0:00:02.7]} 34...
Kg8 {[%clk 0:00:03.1]} 35. Qh6 {[%clk 0:00:03.4]} 35... Bg6 {[%clk 0:00:02.8]}
36. Bf8 {[%clk 0:00:04]} 36... Rd7 {[%clk 0:00:02.5]} 37. Rxd7 {[%clk
0:00:03.7]} 37... Qxd7 {[%clk 0:00:02.9]} 38. Ba3 {[%clk 0:00:03.7]} 38... Qd8
{[%clk 0:00:02.9]} 39. h4 {[%clk 0:00:03.3]} 39... gxh4 {[%clk 0:00:02.9]} 40.
Qxh4 {[%clk 0:00:03.2]} 40... Qd4+ {[%clk 0:00:03.1]} 41. Qxd4 {[%clk
0:00:03.4]} 41... exd4 {[%clk 0:00:04]} 42. Bb2 {[%clk 0:00:04.1]} 42... d3
{[%clk 0:00:04.5]} 43. Kf2 {[%clk 0:00:04.7]} 43... Kf7 {[%clk 0:00:04.3]} 44.
Ke3 {[%clk 0:00:05.2]} 44... Ke6 {[%clk 0:00:04.6]} 45. Bd4 {[%clk 0:00:05.3]}
45... b5 {[%clk 0:00:05]} 46. Kd2 {[%clk 0:00:05.8]} 46... h5 {[%clk 0:00:04.7]}
47. Ba7 {[%clk 0:00:05.7]} 47... Be4 {[%clk 0:00:05.1]} 48. g3 {[%clk
0:00:05.4]} 48... Kf5 {[%clk 0:00:05.7]} 49. Bb8 {[%clk 0:00:05.4]} 49... Kg4
{[%clk 0:00:06.2]} 50. Ke3 {[%clk 0:00:05.8]} 50... f5 {[%clk 0:00:06.2]} 51.
Bc7 {[%clk 0:00:05.8]} 51... Bd5 {[%clk 0:00:04.7]} 52. Kxd3 {[%clk 0:00:05.2]}
52... f4 {[%clk 0:00:05.3]} 53. gxf4 {[%clk 0:00:04]} 53... Kf5 {[%clk
0:00:05.5]} 54. Ke3 {[%clk 0:00:03.4]} 54... h4 {[%clk 0:00:06]} 55. Kf2 {[%clk
0:00:03.8]} 55... Kg4 {[%clk 0:00:06.2]} 56. Kg1 {[%clk 0:00:03.3]} 56... h3
{[%clk 0:00:05.9]} 57. Kh2 {[%clk 0:00:03.7]} 57... Be6 {[%clk 0:00:06.3]} 58.
Bb8 {[%clk 0:00:03.2]} 58... Kf3 {[%clk 0:00:06.2]} 59. Bd6 {[%clk 0:00:01.7]}
59... Ke2 {[%clk 0:00:06.1]} 60. Be7 {[%clk 0:00:02.3]} 60... Bf5 {[%clk
0:00:06.4]} 61. Bd6 {[%clk 0:00:02.5]} 61... Ke3 {[%clk 0:00:06.7]} 62. Be5
{[%clk 0:00:02.2]} 62... Ke4 {[%clk 0:00:06.8]} 63. Kg3 {[%clk 0:00:02.6]} 63...
Kd3 {[%clk 0:00:07.2]} 64. Kh2 {[%clk 0:00:03]} 64... Kc2 {[%clk 0:00:07.8]} 65.
a3 {[%clk 0:00:02.9]} 65... Kxb3 {[%clk 0:00:08.1]} 66. Bd6 {[%clk 0:00:03.5]}
66... a5 {[%clk 0:00:08.2]} 67. Kg3 {[%clk 0:00:04.1]} 67... b4 {[%clk
0:00:07.1]} 68. axb4 {[%clk 0:00:04.6]} 68... axb4 {[%clk 0:00:08]} 69. Kh2
{[%clk 0:00:05]} 69... Kc4 {[%clk 0:00:07.5]} 70. Kg3 {[%clk 0:00:05.9]} 70...
b3 {[%clk 0:00:07.9]} 0-1

[Event "*** SCC Grand Prix: Titled Tuesday Blitz"]
[Site "Chess.com"]
[Date "2020.07.21"]
[Round "8"]
[White "keepitcool9499"]
[Black "124chess"]
[Result "1/2-1/2"]
[WhiteElo "2585"]
[BlackElo "2690"]
[TimeControl "180+1"]
[EndTime "11:37:05 PDT"]
[Termination "Game drawn by stalemate"]

1. d4 {[%clk 0:03:00.9]} 1... g6 {[%clk 0:02:58.1]} 2. c4 {[%clk 0:03:00.2]}
2... Bg7 {[%clk 0:02:58.5]} 3. Nc3 {[%clk 0:03:00.9]} 3... c5 {[%clk 0:02:59.1]}
4. e3 {[%clk 0:03:01.5]} 4... Nf6 {[%clk 0:02:58]} 5. Nf3 {[%clk 0:03:01.8]}
5... O-O {[%clk 0:02:57.7]} 6. Be2 {[%clk 0:03:02.3]} 6... cxd4 {[%clk
0:02:55.6]} 7. exd4 {[%clk 0:03:01.9]} 7... d5 {[%clk 0:02:56.5]} 8. O-O {[%clk
0:03:02.1]} 8... Nc6 {[%clk 0:02:56.6]} 9. Be3 {[%clk 0:03:01.6]} 9... b6 {[%clk
0:02:49]} 10. h3 {[%clk 0:02:59.8]} 10... Bb7 {[%clk 0:02:49]} 11. Rc1 {[%clk
0:02:51.3]} 11... Rc8 {[%clk 0:02:48.5]} 12. Ne5 {[%clk 0:02:50.4]} 12... dxc4
{[%clk 0:02:40.5]} 13. Bf3 {[%clk 0:02:47.4]} 13... Na5 {[%clk 0:02:10.8]} 14.
Bxb7 {[%clk 0:02:42.1]} 14... Nxb7 {[%clk 0:02:11.7]} 15. Qf3 {[%clk 0:02:37.1]}
15... Nd6 {[%clk 0:02:07.3]} 16. Rfd1 {[%clk 0:02:26.9]} 16... Qc7 {[%clk
0:01:54.7]} 17. Bf4 {[%clk 0:02:25.7]} 17... Qb7 {[%clk 0:01:54.9]} 18. Qxb7
{[%clk 0:02:24.2]} 18... Nxb7 {[%clk 0:01:55.8]} 19. a4 {[%clk 0:02:17.7]} 19...
Nd6 {[%clk 0:01:45.5]} 20. Nb5 {[%clk 0:02:14.3]} 20... Nd5 {[%clk 0:01:34.7]}
21. Bg3 {[%clk 0:02:06.2]} 21... Nxb5 {[%clk 0:01:34.4]} 22. axb5 {[%clk
0:02:05.8]} 22... Bxe5 {[%clk 0:01:34.8]} 23. Bxe5 {[%clk 0:02:05.9]} 23... f6
{[%clk 0:01:27.4]} 24. Bg3 {[%clk 0:02:03.6]} 24... c3 {[%clk 0:01:27.9]} 25.
Rc2 {[%clk 0:01:56.8]} 25... Rc4 {[%clk 0:01:22.1]} 26. bxc3 {[%clk 0:01:53.4]}
26... Rxc3 {[%clk 0:01:17.7]} 27. Rxc3 {[%clk 0:01:52.6]} 27... Nxc3 {[%clk
0:01:18.6]} 28. Ra1 {[%clk 0:01:52.2]} 28... Nxb5 {[%clk 0:01:18.3]} 29. f3
{[%clk 0:01:47.9]} 29... Rd8 {[%clk 0:00:58.2]} 30. Bf2 {[%clk 0:01:44.4]} 30...
Kf7 {[%clk 0:00:57.9]} 31. Kf1 {[%clk 0:01:43.2]} 31... Rd7 {[%clk 0:00:50.6]}
32. Ke2 {[%clk 0:01:42.4]} 32... Nc3+ {[%clk 0:00:50.8]} 33. Kf1 {[%clk
0:01:40.1]} 33... Nd5 {[%clk 0:00:51.7]} 34. g3 {[%clk 0:01:38.1]} 34... a5
{[%clk 0:00:51.6]} 35. Ke2 {[%clk 0:01:33.3]} 35... a4 {[%clk 0:00:48.5]} 36.
Kd3 {[%clk 0:01:33.5]} 36... b5 {[%clk 0:00:48.7]} 37. Rb1 {[%clk 0:01:29.1]}
37... b4 {[%clk 0:00:47.2]} 38. Kc4 {[%clk 0:01:28.8]} 38... e6 {[%clk 0:00:44]}
39. Ra1 {[%clk 0:01:22.9]} 39... a3 {[%clk 0:00:40.8]} 40. Kb3 {[%clk
0:01:22.3]} 40... h5 {[%clk 0:00:36]} 41. Be1 {[%clk 0:01:22.2]} 41... g5 {[%clk
0:00:35.6]} 42. Rb1 {[%clk 0:01:18.1]} 42... Rb7 {[%clk 0:00:34.6]} 43. Ka2
{[%clk 0:01:14.6]} 43... Kg6 {[%clk 0:00:32.5]} 44. g4 {[%clk 0:01:09.6]} 44...
h4 {[%clk 0:00:32.1]} 45. Bd2 {[%clk 0:01:05.5]} 45... Kf7 {[%clk 0:00:26.7]}
46. Kb3 {[%clk 0:01:01.1]} 46... Ke7 {[%clk 0:00:26.2]} 47. Re1 {[%clk 0:00:58]}
47... Kd6 {[%clk 0:00:25.9]} 48. Rc1 {[%clk 0:00:57.3]} 48... Rc7 {[%clk
0:00:20.9]} 49. Rb1 {[%clk 0:00:50]} 49... Rb7 {[%clk 0:00:21]} 50. Rc1 {[%clk
0:00:49.3]} 50... Rb8 {[%clk 0:00:17.9]} 51. Rb1 {[%clk 0:00:44.2]} 51... Ra8
{[%clk 0:00:17.8]} 52. Ka2 {[%clk 0:00:40.3]} 52... Nc3+ {[%clk 0:00:12.7]} 53.
Bxc3 {[%clk 0:00:38]} 53... bxc3 {[%clk 0:00:13.6]} 54. Rc1 {[%clk 0:00:37.8]}
54... Rc8 {[%clk 0:00:13.7]} 55. Kxa3 {[%clk 0:00:37.5]} 55... Kd5 {[%clk
0:00:14.2]} 56. Kb3 {[%clk 0:00:37.3]} 56... c2 {[%clk 0:00:14.5]} 57. Rxc2
{[%clk 0:00:34.6]} 57... Rxc2 {[%clk 0:00:14.3]} 58. Kxc2 {[%clk 0:00:35.5]}
58... Kxd4 {[%clk 0:00:15.2]} 59. Kd2 {[%clk 0:00:36.1]} 59... f5 {[%clk
0:00:14.3]} 60. gxf5 {[%clk 0:00:35.1]} 60... exf5 {[%clk 0:00:15.2]} 61. Ke2
{[%clk 0:00:34.4]} 61... Kc3 {[%clk 0:00:13.1]} 62. f4 {[%clk 0:00:30.9]} 62...
Kd4 {[%clk 0:00:09.1]} 63. fxg5 {[%clk 0:00:29.4]} 63... Ke5 {[%clk 0:00:09.7]}
64. Kf3 {[%clk 0:00:28.3]} 64... f4 {[%clk 0:00:09.9]} 65. g6 {[%clk 0:00:11.7]}
65... Kf6 {[%clk 0:00:10.1]} 66. Kxf4 {[%clk 0:00:11.7]} 66... Kxg6 {[%clk
0:00:11]} 67. Kg4 {[%clk 0:00:12.3]} 67... Kh6 {[%clk 0:00:11.9]} 68. Kxh4
{[%clk 0:00:13.2]} 68... Kh7 {[%clk 0:00:12.8]} 69. Kg4 {[%clk 0:00:14.1]} 69...
Kh8 {[%clk 0:00:13.7]} 70. h4 {[%clk 0:00:15]} 70... Kg8 {[%clk 0:00:14.6]} 71.
h5 {[%clk 0:00:15.9]} 71... Kh8 {[%clk 0:00:15.5]} 72. Kh4 {[%clk 0:00:16.8]}
72... Kh7 {[%clk 0:00:16.4]} 73. Kg5 {[%clk 0:00:17.7]} 73... Kh8 {[%clk
0:00:17.3]} 74. h6 {[%clk 0:00:18.6]} 74... Kh7 {[%clk 0:00:18.2]} 75. Kh5
{[%clk 0:00:18.5]} 75... Kh8 {[%clk 0:00:19.1]} 76. Kg6 {[%clk 0:00:19.4]} 76...
Kg8 {[%clk 0:00:16.5]} 77. h7+ {[%clk 0:00:20.3]} 77... Kh8 {[%clk 0:00:17.4]}
78. Kh6 {[%clk 0:00:19.9]} 1/2-1/2

[Event "*** SCC Grand Prix: Titled Tuesday Blitz"]
[Site "Chess.com"]
[Date "2020.07.21"]
[Round "8"]
[White "Shubinkirill2003"]
[Black "Kavyev_Ruslan"]
[Result "1/2-1/2"]
[WhiteElo "2632"]
[BlackElo "2436"]
[TimeControl "180+1"]
[EndTime "11:37:09 PDT"]
[Termination "Game drawn - insufficient material"]

1. e4 {[%clk 0:03:00.9]} 1... c5 {[%clk 0:02:58.6]} 2. Nf3 {[%clk 0:03:00.8]}
2... d6 {[%clk 0:02:58.7]} 3. d4 {[%clk 0:03:00.6]} 3... cxd4 {[%clk 0:02:59.6]}
4. Qxd4 {[%clk 0:03:01.2]} 4... Nf6 {[%clk 0:02:59.3]} 5. Bb5+ {[%clk
0:03:01.2]} 5... Bd7 {[%clk 0:02:58]} 6. c4 {[%clk 0:03:01.4]} 6... g6 {[%clk
0:02:51.7]} 7. Nc3 {[%clk 0:03:01]} 7... Bg7 {[%clk 0:02:52]} 8. O-O {[%clk
0:03:00.6]} 8... O-O {[%clk 0:02:52.2]} 9. h3 {[%clk 0:03:00.4]} 9... a6 {[%clk
0:02:34.2]} 10. Bxd7 {[%clk 0:02:59.3]} 10... Nbxd7 {[%clk 0:02:35.1]} 11. Qd3
{[%clk 0:02:51.7]} 11... Rc8 {[%clk 0:02:34.6]} 12. Rb1 {[%clk 0:02:42]} 12...
Nc5 {[%clk 0:02:25.2]} 13. Qe2 {[%clk 0:02:38.5]} 13... Nfd7 {[%clk 0:02:17.3]}
14. Rd1 {[%clk 0:02:32.4]} 14... Ne5 {[%clk 0:02:00.1]} 15. Nxe5 {[%clk
0:02:23.3]} 15... Bxe5 {[%clk 0:02:01]} 16. Nd5 {[%clk 0:02:14.5]} 16... Ne6
{[%clk 0:01:57]} 17. Be3 {[%clk 0:02:09.8]} 17... Bg7 {[%clk 0:01:46.6]} 18. b3
{[%clk 0:02:03.5]} 18... h6 {[%clk 0:01:33.6]} 19. f4 {[%clk 0:02:01.9]} 19...
Nc5 {[%clk 0:00:58.7]} 20. e5 {[%clk 0:01:58.6]} 20... Kh7 {[%clk 0:00:41.5]}
21. Bf2 {[%clk 0:01:49.4]} 21... Ne6 {[%clk 0:00:27.1]} 22. exd6 {[%clk
0:01:44.3]} 22... exd6 {[%clk 0:00:25.1]} 23. Qf3 {[%clk 0:01:43.7]} 23... f5
{[%clk 0:00:22.9]} 24. Rd2 {[%clk 0:01:28.9]} 24... b6 {[%clk 0:00:22.6]} 25.
Nxb6 {[%clk 0:01:24.3]} 25... Rb8 {[%clk 0:00:20.5]} 26. Nd5 {[%clk 0:01:18.5]}
26... Nc5 {[%clk 0:00:18.3]} 27. Bxc5 {[%clk 0:01:11.5]} 27... dxc5 {[%clk
0:00:19.2]} 28. Rbd1 {[%clk 0:01:11.1]} 28... a5 {[%clk 0:00:19]} 29. Kh1 {[%clk
0:01:01.3]} 29... a4 {[%clk 0:00:19.3]} 30. Rd3 {[%clk 0:01:00.4]} 30... axb3
{[%clk 0:00:19.4]} 31. axb3 {[%clk 0:01:01.3]} 31... Qa5 {[%clk 0:00:19.4]} 32.
g4 {[%clk 0:01:00]} 32... fxg4 {[%clk 0:00:19.5]} 33. hxg4 {[%clk 0:01:00.2]}
33... Rbe8 {[%clk 0:00:20.2]} 34. Rf1 {[%clk 0:00:54.4]} 34... Re1 {[%clk
0:00:19]} 35. Rd1 {[%clk 0:00:50.2]} 35... Rxd1 {[%clk 0:00:18.4]} 36. Rxd1
{[%clk 0:00:48.5]} 36... Qa2 {[%clk 0:00:17.3]} 37. Rf1 {[%clk 0:00:41.6]} 37...
Qc2 {[%clk 0:00:17.1]} 38. Rf2 {[%clk 0:00:40.7]} 38... Qb1+ {[%clk 0:00:16.8]}
39. Rf1 {[%clk 0:00:35.9]} 39... Qc2 {[%clk 0:00:16.5]} 40. f5 {[%clk
0:00:34.4]} 40... gxf5 {[%clk 0:00:14.4]} 41. gxf5 {[%clk 0:00:33.4]} 41... Be5
{[%clk 0:00:14.7]} 42. Qg2 {[%clk 0:00:29.8]} 42... Qxg2+ {[%clk 0:00:09.3]} 43.
Kxg2 {[%clk 0:00:30.7]} 43... Rb8 {[%clk 0:00:09.6]} 44. Rf3 {[%clk 0:00:25.5]}
44... Kg7 {[%clk 0:00:08.8]} 45. Re3 {[%clk 0:00:22.3]} 45... Bf6 {[%clk
0:00:04.8]} 46. Re6 {[%clk 0:00:17.6]} 46... Bd4 {[%clk 0:00:04.9]} 47. Re7+
{[%clk 0:00:14.1]} 47... Kf8 {[%clk 0:00:05.1]} 48. Rh7 {[%clk 0:00:12.3]} 48...
Rxb3 {[%clk 0:00:05.2]} 49. f6 {[%clk 0:00:11.3]} 49... Rb1 {[%clk 0:00:03.4]}
50. Rxh6 {[%clk 0:00:06.1]} 50... Rc1 {[%clk 0:00:03.4]} 51. Rh8+ {[%clk
0:00:04.1]} 51... Kf7 {[%clk 0:00:03.6]} 52. Rh7+ {[%clk 0:00:04.6]} 52... Kf8
{[%clk 0:00:03.1]} 53. Nf4 {[%clk 0:00:04.1]} 53... Bxf6 {[%clk 0:00:02.6]} 54.
Ne6+ {[%clk 0:00:03.6]} 54... Kg8 {[%clk 0:00:03]} 55. Rc7 {[%clk 0:00:01.9]}
55... Rxc4 {[%clk 0:00:03.1]} 56. Kf3 {[%clk 0:00:01.8]} 56... Bd4 {[%clk
0:00:03]} 57. Rd7 {[%clk 0:00:01.9]} 57... Rc3+ {[%clk 0:00:01.7]} 58. Ke4
{[%clk 0:00:02.1]} 58... Rc1 {[%clk 0:00:02.6]} 59. Kf5 {[%clk 0:00:02]} 59...
Rf1+ {[%clk 0:00:03.2]} 60. Kg4 {[%clk 0:00:01.3]} 60... Rf7 {[%clk 0:00:03.8]}
61. Rd8+ {[%clk 0:00:01.1]} 61... Kh7 {[%clk 0:00:04.1]} 62. Ng5+ {[%clk
0:00:01.7]} 62... Kg6 {[%clk 0:00:04.6]} 63. Nxf7 {[%clk 0:00:02.6]} 63... Kxf7
{[%clk 0:00:05.5]} 64. Kf5 {[%clk 0:00:03.2]} 64... Ke7 {[%clk 0:00:06.4]} 65.
Rc8 {[%clk 0:00:03.6]} 65... Kd7 {[%clk 0:00:06.9]} 66. Ra8 {[%clk 0:00:04.5]}
66... Kd6 {[%clk 0:00:07.8]} 67. Ke4 {[%clk 0:00:05]} 67... Kc6 {[%clk
0:00:08.3]} 68. Ra4 {[%clk 0:00:05.5]} 68... Kb5 {[%clk 0:00:09.2]} 69. Ra2
{[%clk 0:00:06]} 69... Kc4 {[%clk 0:00:10.1]} 70. Rc2+ {[%clk 0:00:06.4]} 70...
Kb3 {[%clk 0:00:10.5]} 71. Rxc5 {[%clk 0:00:06.1]} 71... Bxc5 {[%clk 0:00:10.7]}
1/2-1/2